fUST/lending_fUST_20250726
["ID","MTS","AMOUNT","RATE_DAILY","PERIOD"]
[375074968,1753518442414,-395.83524839,0.00019178,2]
[375074969,1753518442434,-460.0,0.00019178,2]
[375074970,1753518442454,-174.02728654,0.00019178,2]
[375074971,1753518442473,-460.0,0.00019178,2]
[375074972,1753518442493,-460.0,0.00019178,2]
[375074973,1753518442513,-466.56276797,0.00019178,2]
[375074974,1753518442532,-460.0,0.00019178,2]
[375074975,1753518442551,-420.02236306,0.00019178,2]
[375074976,1753518442571,-460.0,0.00019178,2]
[375074977,1753518442589,-460.0,0.00019178,2]
[375074978,1753518442608,-460.91638229,0.00019178,2]
[375074979,1753518442628,-179.09413915,0.00019178,2]
[375074980,1753518442648,-209.35839772,0.00019178,2]
[375074981,1753518442667,-169.8128912,0.00019178,2]
[375074982,1753518442688,-460.84311214,0.00019178,2]
[375074983,1753518442708,-460.0,0.00019178,2]
[375074984,1753518442729,-460.0,0.00019178,2]
[375074985,1753518442750,-460.0,0.00019178,2]
[375074986,1753518442771,-460.0,0.00019178,2]
[375074987,1753518442790,-460.0,0.00019178,2]
[375074988,1753518442811,-460.0,0.00019178,2]
[375074989,1753518442830,-205.3792598,0.00019178,2]
[375074990,1753518442851,-460.0,0.00019178,2]
[375074991,1753518442871,-209.01490085,0.00019178,2]
[375074992,1753518442891,-460.0,0.00019178,2]
[375074993,1753518442911,-460.0,0.00019178,2]
[375074994,1753518442931,-460.0,0.00019178,2]
[375074995,1753518442952,-460.0,0.00019178,2]
[375074996,1753518442972,-430.23422471,0.00019178,2]
[375074997,1753518442993,-460.0,0.00019178,2]
[375074998,1753518443015,-460.0,0.00019178,2]
[375074999,1753518443035,-460.0,0.00019178,2]
[375075000,1753518443055,-462.15361917,0.00019178,2]
[375075001,1753518443076,-367.2294223,0.00019178,2]
[375075024,1753518601883,378.0,0.00026027,120]
[375075044,1753518632459,-215.0738,0.00019166,2]
[375075045,1753518632468,-256.91607529,0.00019177,2]
[375075050,1753518633251,-43.08392471,0.00019177,2]
[375075051,1753518633261,-460.0,0.00019178,2]
[375075052,1753518633271,-19.23996705,0.00019178,2]
[375075053,1753518633306,-440.76003295,0.00019178,2]
[375075054,1753518633316,-354.39496705,0.00019178,2]
[375075088,1753518638337,-111.56376609,0.00019178,2]
[375075089,1753518638347,-460.0,0.00019178,2]
[375075090,1753518638360,-69.44480975,0.00019178,2]
[375075091,1753518638372,-390.55519025,0.00019178,2]
[375075093,1753518638382,-250.86541694,0.00019178,2]
[375075094,1753518638392,-321.23880755,0.00019178,2]
[375075095,1753518638403,-460.0,0.00019178,2]
[375075096,1753518638414,-460.0,0.00019178,2]
[375075097,1753518638423,-460.0,0.00019178,2]
[375075098,1753518638433,-460.0,0.00019178,2]
[375075099,1753518638443,-460.0,0.00019178,2]
[375075100,1753518638452,-460.0,0.00019178,2]
[375075101,1753518638462,-460.0,0.00019178,2]
[375075102,1753518638471,-460.0,0.00019178,2]
[375075103,1753518638480,-460.0,0.00019178,2]
[375075104,1753518638490,-683.79,0.00019178,2]
[375075105,1753518638499,-460.0,0.00019178,2]
[375075106,1753518638509,-460.0,0.00019178,2]
[375075107,1753518638519,-460.0,0.00019178,2]
[375075108,1753518638528,-770.43,0.00019178,2]
[375075109,1753518638538,-460.0,0.00019178,2]
[375075110,1753518638548,-460.0,0.00019178,2]
[375075111,1753518638558,-460.0,0.00019178,2]
[375075112,1753518638567,-460.0,0.00019178,2]
[375075113,1753518638577,-460.0,0.00019178,2]
[375075114,1753518638587,-460.0,0.00019178,2]
[375075115,1753518638596,-460.0,0.00019178,2]
[375075116,1753518638607,-460.0,0.00019178,2]
[375075117,1753518638624,-460.0,0.00019178,2]
[375075118,1753518638636,-730.87,0.00019178,2]
[375075119,1753518638646,-460.0,0.00019178,2]
[375075120,1753518638656,-460.0,0.00019178,2]
[375075121,1753518638666,-462.12822993,0.00019178,2]
[375075122,1753518638825,-460.0,0.00019178,2]
[375075123,1753518638835,-460.0,0.00019178,2]
[375075124,1753518638845,-460.0,0.00019178,2]
[375075125,1753518638855,-460.0,0.00019178,2]
[375075126,1753518638865,-460.0,0.00019178,2]
[375075127,1753518638875,-460.0,0.00019178,2]
[375075128,1753518638884,-460.0,0.00019178,2]
[375075129,1753518638894,-460.0,0.00019178,2]
[375075130,1753518638903,-460.0,0.00019178,2]
[375075131,1753518638913,-460.0,0.00019178,2]
[375075132,1753518638923,-460.0,0.00019178,2]
[375075133,1753518638932,-598.21,0.00019178,2]
[375075134,1753518638941,-460.0,0.00019178,2]
[375075135,1753518638951,-460.0,0.00019178,2]
[375075136,1753518638960,-460.0,0.00019178,2]
[375075137,1753518638970,-460.0,0.00019178,2]
[375075138,1753518638979,-460.0,0.00019178,2]
[375075139,1753518638989,-1244.33,0.00019178,2]
[375075140,1753518638998,-460.0,0.00019178,2]
[375075141,1753518639007,-460.0,0.00019178,2]
[375075142,1753518639017,-460.0,0.00019178,2]
[375075143,1753518639027,-460.0,0.00019178,2]
[375075144,1753518639037,-460.0,0.00019178,2]
[375075145,1753518639047,-460.0,0.00019178,2]
[375075146,1753518639057,-460.0,0.00019178,2]
[375075147,1753518639066,-460.0,0.00019178,2]
[375075148,1753518639076,-460.0,0.00019178,2]
[375075149,1753518639085,-460.0,0.00019178,2]
[375075150,1753518639095,-460.0,0.00019178,2]
[375075151,1753518639105,-460.0,0.00019178,2]
[375075152,1753518639115,-460.0,0.00019178,2]
[375075153,1753518639125,-460.0,0.00019178,2]
[375075154,1753518639134,-1064.39,0.00019178,2]
[375075155,1753518639144,-460.0,0.00019178,2]
[375075156,1753518639153,-460.0,0.00019178,2]
[375075157,1753518639163,-460.0,0.00019178,2]
[375075158,1753518639173,-460.0,0.00019178,2]
[375075159,1753518639182,-460.0,0.00019178,2]
[375075160,1753518639196,-460.0,0.00019178,2]
[375075161,1753518639205,-460.0,0.00019178,2]
[375075162,1753518639215,-460.0,0.00019178,2]
[375075163,1753518639225,-462.5421862,0.00019178,2]
[375075164,1753518639234,-460.0,0.00019178,2]
[375075165,1753518639244,-1078.21,0.00019178,2]
[375075166,1753518639253,-460.0,0.00019178,2]
[375075167,1753518639263,-460.0,0.00019178,2]
[375075168,1753518639272,-603.38585314,0.00019178,2]
[375075169,1753518639281,-1000.0,0.00019178,2]
[375075170,1753518639290,-477.05944288,0.00019178,2]
[375075171,1753518639299,-460.0,0.00019178,2]
[375075172,1753518639308,-460.0,0.00019178,2]
[375075173,1753518639318,-460.0,0.00019178,2]
[375075174,1753518639327,-460.0,0.00019178,2]
[375075175,1753518639336,-460.0,0.00019178,2]
[375075176,1753518639345,-460.0,0.00019178,2]
[375075177,1753518639357,-460.0,0.00019178,2]
[375075178,1753518639370,-460.0,0.00019178,2]
[375075179,1753518639380,-515.53,0.00019178,2]
[375075180,1753518639389,-460.0,0.00019178,2]
[375075181,1753518639400,-187.47793456,0.00019178,2]
[375075182,1753518639415,-275.10889495,0.00019178,2]
[375075183,1753518639424,-680.51,0.00019178,2]
[375075184,1753518639434,-460.0,0.00019178,2]
[375075185,1753518639447,-460.0,0.00019178,2]
[375075186,1753518639457,-460.0,0.00019178,2]
[375075187,1753518639466,-460.0,0.00019178,2]
[375075188,1753518639476,-460.0,0.00019178,2]
[375075189,1753518639486,-460.0,0.00019178,2]
[375075190,1753518639496,-462.94876309,0.00019178,2]
[375075191,1753518639506,-460.0,0.00019178,2]
[375075192,1753518639515,-460.0,0.00019178,2]
[375075193,1753518639524,-470.61095494,0.00019178,2]
[375075194,1753518639535,-460.0,0.00019178,2]
[375075195,1753518639544,-460.0,0.00019178,2]
[375075196,1753518639553,-460.0,0.00019178,2]
[375075197,1753518639564,-150.69406486,0.00019178,2]
[375075198,1753518639577,-309.30593514,0.00019178,2]
[375075199,1753518639587,-460.0,0.00019178,2]
[375075200,1753518639596,-460.0,0.00019178,2]
[375075201,1753518639606,-946.18,0.00019178,2]
[375075202,1753518639616,-460.0,0.00019178,2]
[375075203,1753518639625,-460.0,0.00019178,2]
[375075204,1753518639634,-212.66719458,0.00019178,2]
[375075205,1753518639644,-460.0,0.00019178,2]
[375075206,1753518639654,-466.07528846,0.00019178,2]
[375075207,1753518639667,-658.11,0.00019178,2]
[375075208,1753518639676,-460.0,0.00019178,2]
[375075209,1753518639686,-460.0,0.00019178,2]
[375075210,1753518639696,-278.37952341,0.00019178,2]
[375075211,1753518639708,-181.62047659,0.00019178,2]
[375075212,1753518639718,-460.0,0.00019178,2]
[375075213,1753518639727,-244.07584613,0.00019178,2]
[375075214,1753518639739,-215.92415387,0.00019178,2]
[375075215,1753518639748,-460.0,0.00019178,2]
[375075216,1753518639757,-506.75,0.00019178,2]
[375075217,1753518639766,-460.0,0.00019178,2]
[375075218,1753518639775,-460.0,0.00019178,2]
[375075219,1753518639786,-196.87173254,0.00019178,2]
[375075220,1753518639805,-263.12826746,0.00019178,2]
[375075221,1753518639814,-582.82,0.00019178,2]
[375075222,1753518639825,-460.0,0.00019178,2]
[375075223,1753518639835,-460.0,0.00019178,2]
[375075224,1753518639845,-1520.54,0.00019178,2]
[375075225,1753518639856,-460.0,0.00019178,2]
[375075226,1753518639865,-460.0,0.00019178,2]
[375075227,1753518639875,-1559.59,0.00019178,2]
[375075228,1753518639885,-460.0,0.00019178,2]
[375075229,1753518639895,-550.24564176,0.00019178,2]
[375075230,1753518639905,-460.0,0.00019178,2]
[375075231,1753518639915,-2989.5,0.00019178,2]
[375075232,1753518639925,-460.0,0.00019178,2]
[375075234,1753518639934,-460.0,0.00019178,2]
[375075235,1753518639943,-371.62683514,0.00019178,2]
[375075236,1753518639952,-460.0,0.00019178,2]
[375075237,1753518639962,-527.57354801,0.00019178,2]
[375075238,1753518639971,-460.0,0.00019178,2]
[375075239,1753518639981,-500.0,0.00019178,2]
[375075240,1753518639991,-500.0,0.00019178,2]
[375075241,1753518640000,-268.42863191,0.00019178,2]
[375075242,1753518640009,-440.52236543,0.00019178,2]
[375075243,1753518640019,-460.0,0.00019178,2]
[375075244,1753518640028,-7051.69,0.00019178,2]
[375075246,1753518640038,-460.0,0.00019178,2]
[375075248,1753518640048,-460.0,0.00019178,2]
[375075250,1753518640057,-460.0,0.00019178,2]
[375075252,1753518640067,-930.16,0.00019178,2]
[375075254,1753518640076,-460.0,0.00019178,2]
[375075256,1753518640085,-460.0,0.00019178,2]
[375075258,1753518640095,-5751.51,0.00019178,2]
[375075260,1753518640104,-460.0,0.00019178,2]
[375075262,1753518640113,-460.0,0.00019178,2]
[375075264,1753518640123,-460.0,0.00019178,2]
[375075266,1753518640132,-460.0,0.00019178,2]
[375075268,1753518640141,-460.0,0.00019178,2]
[375075270,1753518640151,-460.0,0.00019178,2]
[375075272,1753518640159,-2068.33,0.00019178,2]
[375075274,1753518640170,-600.58,0.00019178,2]
[375075276,1753518640180,-460.0,0.00019178,2]
[375075278,1753518640189,-460.0,0.00019178,2]
[375075280,1753518640199,-468.45644933,0.00019178,2]
[375075282,1753518640209,-460.0,0.00019178,2]
[375075284,1753518640218,-460.0,0.00019178,2]
[375075286,1753518640227,-460.0,0.00019178,2]
[375075288,1753518640236,-460.0,0.00019178,2]
[375075290,1753518640245,-829.82,0.00019178,2]
[375075292,1753518640255,-3133.47,0.00019178,2]
[375075294,1753518640264,-1114.11,0.00019178,2]
[375075296,1753518640274,-683.46,0.00019178,2]
[375075298,1753518640283,-460.0,0.00019178,2]
[375075300,1753518640292,-460.0,0.00019178,2]
[375075302,1753518640302,-1015.04,0.00019178,2]
[375075304,1753518640311,-460.0,0.00019178,2]
[375075306,1753518640320,-699.24,0.00019178,2]
[375075308,1753518640329,-460.0,0.00019178,2]
[375075310,1753518640338,-798.71,0.00019178,2]
[375075312,1753518640348,-460.0,0.00019178,2]
[375075314,1753518640359,-3614.37,0.00019178,2]
[375075316,1753518640370,-460.0,0.00019178,2]
[375075318,1753518640380,-4082.85,0.00019178,2]
[375075320,1753518640389,-460.0,0.00019178,2]
[375075322,1753518640400,-963.21,0.00019178,2]
[375075324,1753518640409,-467.31220708,0.00019178,2]
[375075326,1753518640419,-460.0,0.00019178,2]
[375075328,1753518640428,-460.0,0.00019178,2]
[375075330,1753518640441,-460.0,0.00019178,2]
[375075334,1753518640452,-1613.23,0.00019178,2]
[375075337,1753518640463,-460.0,0.00019178,2]
[375075339,1753518640472,-563.64411547,0.00019178,2]
[375075341,1753518640481,-460.0,0.00019178,2]
[375075343,1753518640491,-460.0,0.00019178,2]
[375075345,1753518640501,-460.0,0.00019178,2]
[375075347,1753518640510,-460.0,0.00019178,2]
[375075349,1753518640519,-460.0,0.00019178,2]
[375075351,1753518640529,-460.0,0.00019178,2]
[375075353,1753518640538,-460.0,0.00019178,2]
[375075355,1753518640547,-460.0,0.00019178,2]
[375075357,1753518640556,-2512.04,0.00019178,2]
[375075360,1753518640566,-460.0,0.00019178,2]
[375075362,1753518640586,-460.0,0.00019178,2]
[375075364,1753518640596,-1044.04,0.00019178,2]
[375075366,1753518640607,-612.0,0.00019178,2]
[375075367,1753518640624,-726.56,0.00019178,2]
[375075368,1753518640634,-460.0,0.00019178,2]
[375075369,1753518640644,-460.0,0.00019178,2]
[375075370,1753518640654,-679.37,0.00019178,2]
[375075371,1753518640664,-460.0,0.00019178,2]
[375075372,1753518640675,-532.99586021,0.00019178,2]
[375075373,1753518640684,-460.0,0.00019178,2]
[375075374,1753518640694,-460.0,0.00019178,2]
[375075375,1753518640705,-460.0,0.00019178,2]
[375075376,1753518640714,-460.0,0.00019178,2]
[375075377,1753518640724,-460.0,0.00019178,2]
[375075378,1753518640734,-460.0,0.00019178,2]
[375075379,1753518640744,-947.29,0.00019178,2]
[375075380,1753518640754,-460.0,0.00019178,2]
[375075381,1753518640764,-2318.45,0.00019178,2]
[375075382,1753518640773,-460.0,0.00019178,2]
[375075383,1753518640783,-460.0,0.00019178,2]
[375075384,1753518640793,-460.0,0.00019178,2]
[375075385,1753518640802,-3375.61,0.00019178,2]
[375075386,1753518640812,-804.95,0.00019178,2]
[375075387,1753518640822,-460.0,0.00019178,2]
[375075388,1753518640832,-460.0,0.00019178,2]
[375075395,1753518640967,-805.06,0.00019178,2]
[375075397,1753518640978,-460.0,0.00019178,2]
[375075399,1753518640987,-808.72,0.00019178,2]
[375075401,1753518640998,-460.0,0.00019178,2]
[375075403,1753518641009,-460.0,0.00019178,2]
[375075405,1753518641018,-1922.81,0.00019178,2]
[375075407,1753518641027,-3139.36,0.00019178,2]
[375075409,1753518641037,-460.0,0.00019178,2]
[375075411,1753518641046,-460.0,0.00019178,2]
[375075413,1753518641055,-1197.33,0.00019178,2]
[375075415,1753518641064,-460.0,0.00019178,2]
[375075417,1753518641073,-1074.65,0.00019178,2]
[375075419,1753518641083,-460.0,0.00019178,2]
[375075420,1753518641092,-495.48,0.00019178,2]
[375075423,1753518641102,-460.0,0.00019178,2]
[375075424,1753518641112,-460.0,0.00019178,2]
[375075427,1753518641121,-460.0,0.00019178,2]
[375075429,1753518641131,-920.37,0.00019178,2]
[375075430,1753518641140,-500.0,0.00019178,2]
[375075432,1753518641150,-500.0,0.00019178,2]
[375075434,1753518641160,-302.4,0.00019178,2]
[375075436,1753518641169,-547.32,0.00019178,2]
[375075438,1753518641179,-460.0,0.00019178,2]
[375075440,1753518641188,-460.0,0.00019178,2]
[375075442,1753518641197,-460.0,0.00019178,2]
[375075444,1753518641207,-1146.15,0.00019178,2]
[375075446,1753518641216,-410.55768849,0.00019178,2]
[375075448,1753518641226,-460.0,0.00019178,2]
[375075450,1753518641235,-460.0,0.00019178,2]
[375075452,1753518641246,-10123.27,0.00019178,2]
[375075454,1753518641255,-2343.28,0.00019178,2]
[375075456,1753518641264,-460.0,0.00019178,2]
[375075458,1753518641274,-1195.48,0.00019178,2]
[375075460,1753518641283,-460.0,0.00019178,2]
[375075462,1753518641292,-1278.47,0.00019178,2]
[375075464,1753518641302,-3375.89,0.00019178,2]
[375075466,1753518641311,-1539.6,0.00019178,2]
[375075468,1753518641323,-684.51,0.00019178,2]
[375075470,1753518641337,-684.2,0.00019178,2]
[375075472,1753518641345,-460.0,0.00019178,2]
[375075474,1753518641356,-565.51565083,0.00019178,2]
[375075476,1753518641369,-460.0,0.00019178,2]
[375075478,1753518641378,-495.6,0.00019178,2]
[375075480,1753518641389,-1132.06,0.00019178,2]
[375075482,1753518641399,-500.0,0.00019178,2]
[375075484,1753518641408,-666.0,0.00019178,2]
[375075486,1753518641418,-538.447356,0.00019178,2]
[375075488,1753518641427,-187.80454361,0.00019215,2]
[375075490,1753518641437,-272.73301469,0.00019309,2]
[375075492,1753518641446,-187.80454361,0.00019352,2]
[375075494,1753518641459,-2577.51078042,0.00019352,2]
[375075496,1753518641468,-17886.15084021,0.00019352,2]
[375075498,1753518641478,-5000.0,0.00019442,2]
[375075500,1753518641488,-460.0,0.00019452,2]
[375075502,1753518641498,-460.0,0.00019452,2]
[375075504,1753518641507,-460.0,0.00019452,2]
[375075506,1753518641517,-460.0,0.00019452,2]
[375075508,1753518641526,-579.70856053,0.00019452,2]
[375075510,1753518641535,-460.0,0.00019452,2]
[375075512,1753518641545,-460.0,0.00019452,2]
[375075514,1753518641554,-460.0,0.00019452,2]
[375075516,1753518641566,-346.26984491,0.00019452,2]
[375075518,1753518641575,-156.55366538,0.00019452,2]
[375075520,1753518641585,-462.5522571,0.00019452,2]
[375075522,1753518641594,-460.0,0.00019452,2]
[375075524,1753518641605,-460.0,0.00019452,2]
[375075526,1753518641614,-460.0,0.00019452,2]
[375075528,1753518641627,-683.79,0.00019452,2]
[375075530,1753518641637,-460.0,0.00019452,2]
[375075532,1753518641647,-460.0,0.00019452,2]
[375075534,1753518641656,-770.43,0.00019452,2]
[375075536,1753518641666,-460.0,0.00019452,2]
[375075538,1753518641675,-460.0,0.00019452,2]
[375075540,1753518641685,-460.0,0.00019452,2]
[375075542,1753518641695,-460.0,0.00019452,2]
[375075544,1753518641704,-460.0,0.00019452,2]
[375075546,1753518641713,-460.0,0.00019452,2]
[375075548,1753518641723,-730.87,0.00019452,2]
[375075550,1753518641732,-314.0210308,0.00019452,2]
[375075552,1753518641742,-460.0,0.00019452,2]
[375075554,1753518641751,-460.0,0.00019452,2]
[375075556,1753518641760,-460.0,0.00019452,2]
[375075558,1753518641770,-460.0,0.00019452,2]
[375075560,1753518641780,-460.0,0.00019452,2]
[375075562,1753518641790,-460.0,0.00019452,2]
[375075564,1753518641799,-598.21,0.00019452,2]
[375075566,1753518641809,-460.0,0.00019452,2]
[375075568,1753518641819,-1244.33,0.00019452,2]
[375075570,1753518641828,-460.0,0.00019452,2]
[375075572,1753518641837,-460.0,0.00019452,2]
[375075574,1753518641847,-460.0,0.00019452,2]
[375075576,1753518641858,-460.0,0.00019452,2]
[375075578,1753518641867,-460.0,0.00019452,2]
[375075580,1753518641884,-226.6172345,0.00019452,2]
[375075582,1753518641901,-460.0,0.00019452,2]
[375075584,1753518641911,-460.0,0.00019452,2]
[375075586,1753518641921,-1064.39,0.00019452,2]
[375075588,1753518641930,-460.0,0.00019452,2]
[375075590,1753518641939,-460.0,0.00019452,2]
[375075592,1753518641949,-460.0,0.00019452,2]
[375075594,1753518641958,-460.0,0.00019452,2]
[375075596,1753518641967,-1078.21,0.00019452,2]
[375075598,1753518641977,-460.0,0.00019452,2]
[375075600,1753518641986,-460.0,0.00019452,2]
[375075602,1753518641996,-471.83709063,0.00019452,2]
[375075604,1753518642005,-460.0,0.00019452,2]
[375075606,1753518642015,-460.0,0.00019452,2]
[375075608,1753518642025,-460.0,0.00019452,2]
[375075610,1753518642035,-470.7276908,0.00019452,2]
[375075612,1753518642044,-460.0,0.00019452,2]
[375075614,1753518642054,-515.53,0.00019452,2]
[375075616,1753518642064,-460.0,0.00019452,2]
[375075618,1753518642074,-680.51,0.00019452,2]
[375075620,1753518642084,-460.0,0.00019452,2]
[375075622,1753518642093,-460.0,0.00019452,2]
[375075624,1753518642103,-460.0,0.00019452,2]
[375075626,1753518642113,-460.0,0.00019452,2]
[375075628,1753518642123,-460.0,0.00019452,2]
[375075630,1753518642132,-460.0,0.00019452,2]
[375075632,1753518642143,-460.0,0.00019452,2]
[375075634,1753518642152,-946.18,0.00019452,2]
[375075636,1753518642162,-460.0,0.00019452,2]
[375075638,1753518642171,-460.0,0.00019452,2]
[375075640,1753518642180,-460.0,0.00019452,2]
[375075642,1753518642190,-658.11,0.00019452,2]
[375075644,1753518642199,-460.0,0.00019452,2]
[375075646,1753518642208,-460.0,0.00019452,2]
[375075648,1753518642217,-460.0,0.00019452,2]
[375075650,1753518642226,-460.0,0.00019452,2]
[375075652,1753518642236,-460.0,0.00019452,2]
[375075654,1753518642245,-460.0,0.00019452,2]
[375075656,1753518642255,-506.75,0.00019452,2]
[375075658,1753518642264,-460.0,0.00019452,2]
[375075660,1753518642274,-460.0,0.00019452,2]
[375075662,1753518642283,-582.82,0.00019452,2]
[375075664,1753518642292,-460.0,0.00019452,2]
[375075666,1753518642303,-460.0,0.00019452,2]
[375075668,1753518642312,-1520.54,0.00019452,2]
[375075670,1753518642321,-460.0,0.00019452,2]
[375075672,1753518642330,-460.0,0.00019452,2]
[375075674,1753518642340,-1559.59,0.00019452,2]
[375075676,1753518642350,-460.0,0.00019452,2]
[375075678,1753518642364,-460.0,0.00019452,2]
[375075680,1753518642376,-2989.5,0.00019452,2]
[375075682,1753518642386,-460.0,0.00019452,2]
[375075684,1753518642395,-460.0,0.00019452,2]
[375075686,1753518642406,-197.96320932,0.00019452,2]
[375075688,1753518642415,-460.0,0.00019452,2]
[375075690,1753518642424,-460.0,0.00019452,2]
[375075692,1753518642434,-7051.69,0.00019452,2]
[375075694,1753518642443,-460.0,0.00019452,2]
[375075696,1753518642453,-460.0,0.00019452,2]
[375075698,1753518642463,-930.16,0.00019452,2]
[375075700,1753518642473,-460.0,0.00019452,2]
[375075702,1753518642482,-460.0,0.00019452,2]
[375075704,1753518642491,-5751.51,0.00019452,2]
[375075706,1753518642500,-460.0,0.00019452,2]
[375075708,1753518642510,-460.0,0.00019452,2]
[375075710,1753518642519,-504.08381758,0.00019452,2]
[375075712,1753518642529,-460.0,0.00019452,2]
[375075714,1753518642538,-460.0,0.00019452,2]
[375075716,1753518642548,-460.0,0.00019452,2]
[375075718,1753518642557,-2068.33,0.00019452,2]
[375075720,1753518642566,-600.58,0.00019452,2]
[375075722,1753518642575,-460.0,0.00019452,2]
[375075724,1753518642585,-605.84313857,0.00019452,2]
[375075726,1753518642594,-460.0,0.00019452,2]
[375075728,1753518642604,-460.0,0.00019452,2]
[375075730,1753518642616,-460.0,0.00019452,2]
[375075732,1753518642625,-460.0,0.00019452,2]
[375075734,1753518642634,-829.82,0.00019452,2]
[375075736,1753518642644,-3133.47,0.00019452,2]
[375075738,1753518642654,-1114.11,0.00019452,2]
[375075740,1753518642663,-683.46,0.00019452,2]
[375075742,1753518642673,-460.0,0.00019452,2]
[375075744,1753518642682,-1015.04,0.00019452,2]
[375075746,1753518642691,-699.24,0.00019452,2]
[375075748,1753518642701,-460.0,0.00019452,2]
[375075750,1753518642710,-798.71,0.00019452,2]
[375075752,1753518642719,-460.0,0.00019452,2]
[375075754,1753518642729,-3614.37,0.00019452,2]
[375075756,1753518642738,-4082.85,0.00019452,2]
[375075758,1753518642747,-460.0,0.00019452,2]
[375075760,1753518642756,-963.21,0.00019452,2]
[375075762,1753518642766,-460.0,0.00019452,2]
[375075764,1753518642775,-460.0,0.00019452,2]
[375075766,1753518642784,-460.0,0.00019452,2]
[375075768,1753518642793,-1613.23,0.00019452,2]
[375075781,1753518642882,-460.0,0.00019452,2]
[375075783,1753518642901,-460.0,0.00019452,2]
[375075785,1753518642911,-460.0,0.00019452,2]
[375075787,1753518642920,-2512.04,0.00019452,2]
[375075789,1753518642930,-460.0,0.00019452,2]
[375075791,1753518642939,-1044.04,0.00019452,2]
[375075793,1753518642949,-612.0,0.00019452,2]
[375075795,1753518642958,-726.56,0.00019452,2]
[375075797,1753518642967,-460.0,0.00019452,2]
[375075799,1753518642976,-460.0,0.00019452,2]
[375075801,1753518642986,-679.37,0.00019452,2]
[375075803,1753518642995,-471.14596406,0.00019452,2]
[375075804,1753518643005,-460.0,0.00019452,2]
[375075808,1753518643016,-460.0,0.00019452,2]
[375075810,1753518643026,-460.0,0.00019452,2]
[375075812,1753518643036,-460.0,0.00019452,2]
[375075814,1753518643045,-947.29,0.00019452,2]
[375075816,1753518643055,-197.26026755,0.00019452,2]
[375075818,1753518643065,-2318.45,0.00019452,2]
[375075820,1753518643075,-460.0,0.00019452,2]
[375075822,1753518643084,-460.0,0.00019452,2]
[375075824,1753518643093,-3375.61,0.00019452,2]
[375075826,1753518643104,-804.95,0.00019452,2]
[375075828,1753518643113,-460.0,0.00019452,2]
[375075830,1753518643122,-805.06,0.00019452,2]
[375075832,1753518643132,-460.0,0.00019452,2]
[375075833,1753518643141,-808.72,0.00019452,2]
[375075836,1753518643151,-460.0,0.00019452,2]
[375075837,1753518643160,-460.0,0.00019452,2]
[375075839,1753518643170,-1922.81,0.00019452,2]
[375075841,1753518643179,-3139.36,0.00019452,2]
[375075843,1753518643188,-246.89844274,0.00019452,2]
[375075845,1753518643198,-460.0,0.00019452,2]
[375075847,1753518643207,-1197.33,0.00019452,2]